bitfinex/quotes_ETHUSD_20250630
["timestamp","ask_amount","ask_price","bid_price","bid_amount"]
[1751274691887,0.01,2475.1,2475.0,30.10008213]
[1751274692892,0.01,2475.1,2475.0,32.85699613]
[1751274693691,0.01,2475.1,2475.0,30.10008213]
[1751274695094,0.01,2475.1,2475.0,33.89943413]
[1751274695299,0.01,2475.1,2475.0,30.10008213]
[1751274695495,0.01,2475.1,2475.0,32.45543413]
[1751274695795,0.01,2475.1,2475.0,60.10008213]
[1751274697299,0.01,2476.0,2475.9,4.58893533]
[1751274699098,0.01,2476.0,2475.9,4.79053533]
[1751274703881,0.01,2476.0,2475.9,14.79053533]
[1751274706884,0.8318,2476.0,2475.9,10.7516]
[1751274707084,0.8318,2476.0,2475.9,14.79053533]
[1751274708393,0.01,2476.0,2475.9,14.79053533]
[1751274709817,0.01,2476.0,2475.9,0.7516]
[1751274709978,0.01,2476.0,2475.9,4.79053533]
[1751274713311,0.8281,2476.0,2475.9,4.79053533]
[1751274713505,0.01,2476.0,2475.9,4.79053533]
[1751274716928,0.01,2476.0,2475.9,14.79053533]
[1751274717393,0.01,2476.0,2475.9,27.60691342]
[1751274718132,0.01,2476.0,2475.9,21.34253533]
[1751274719346,0.01,2476.0,2475.9,17.3036]
[1751274719511,0.01,2476.0,2475.9,11.34253533]
[1751274720394,0.01,2476.0,2475.9,0.7516]
[1751274720610,4.03916847,2475.8,2475.1,0.7897]
[1751274720931,0.7754,2475.7,2475.4,4.03974724]
[1751274721097,0.7754,2475.7,2475.4,6.554]
[1751274721298,0.7754,2475.7,2475.1,0.7897]
[1751274721299,4.81467926,2475.7,2475.1,4.04017541]
[1751274721626,4.85992165,2475.4,2475.1,0.55]
[1751274721801,4.85992116,2475.4,2475.1,0.55]
[1751274722000,4.03991694,2475.3,2475.0,0.2216]
[1751274722329,6.54789338,2475.4,2475.0,4.26200147]
[1751274722916,0.771,2475.1,2475.0,0.02]
[1751274723226,0.9726,2475.1,2475.0,0.02]
[1751274723529,5.01284079,2475.1,2475.0,0.02]
[1751274724305,0.9726,2475.1,2475.0,0.02]
[1751274724905,5.01284079,2475.1,2475.0,0.02]
[1751274725262,0.9726,2475.1,2475.0,0.02]
[1751274725438,5.01284079,2475.1,2475.0,0.02]
[1751274726135,0.9726,2475.1,2475.0,0.02]
[1751274726699,0.9726,2475.1,2475.0,0.57]
[1751274727135,2.4696,2475.3,2475.0,0.57]
[1751274727337,2.6712,2475.3,2475.0,0.57]
[1751274728313,2.6712,2475.3,2475.0,4.61039004]
[1751274729207,2.6712,2475.3,2475.0,0.57]
[1751274730040,6.71115155,2475.3,2475.0,0.57]
[1751274730340,2.6712,2475.3,2475.0,0.57]
[1751274731436,0.7796,2475.6,2475.3,4.58991086]
[1751274731662,0.2016,2475.7,2475.5,4.03957627]
[1751274731866,0.7796,2475.8,2475.6,0.55]
[1751274732033,0.9812,2475.8,2475.6,0.55]
[1751274732646,0.2016,2475.8,2475.6,4.58940477]
[1751274733051,0.2016,2475.8,2475.6,0.55]
[1751274734668,0.2016,2475.8,2475.6,4.58934958]
[1751274737375,0.2016,2475.8,2475.7,0.55]
[1751274740741,0.2016,2475.8,2475.2,8.8000027]
[1751274740742,0.7661,2475.7,2475.2,8.8000027]
[1751274741075,0.2016,2475.5,2475.2,8.8000027]
[1751274741574,4.24128287,2475.5,2475.2,4.76]
[1751274741869,0.9605,2475.4,2475.3,0.55]
[1751274742381,5.00025115,2475.4,2475.3,0.55]
[1751274742551,0.9605,2475.4,2475.1,0.55]
[1751274743962,5.00026495,2475.4,2475.1,0.55]
[1751274744471,0.2016,2475.2,2475.0,4.06030626]
[1751274744971,0.2016,2475.2,2475.1,0.55]
[1751274747653,0.2016,2475.2,2475.0,0.02]
[1751274756162,0.2016,2475.2,2475.0,0.57]
[1751274760385,0.2016,2475.2,2475.0,0.02]
[1751274760781,4.24173769,2475.2,2475.0,0.02]
[1751274761079,5.14579332,2475.2,2475.0,0.02]
[1751274761888,1.10565563,2475.2,2475.0,0.02]
[1751274763801,5.14575953,2475.2,2475.0,0.02]
[1751274766684,4.04024079,2475.1,2475.0,0.02]
[1751274766988,4.86024079,2475.1,2475.0,0.02]
[1751274767358,5.75026448,2475.1,2475.0,0.02]
[1751274767752,1.71002369,2475.1,2475.0,0.02]
[1751274767965,5.75026448,2475.1,2475.0,0.02]
[1751274768788,7.43726448,2475.1,2475.0,0.02]
[1751274769559,13.99226448,2475.1,2475.0,0.02]
[1751274771577,5.75026448,2475.1,2475.0,0.02]
[1751274771779,13.99226448,2475.1,2475.0,0.02]
[1751274771981,13.97616448,2475.1,2475.0,0.02]
[1751274785087,20.24054257,2475.1,2475.0,0.02]
[1751274785488,20.94054257,2475.1,2475.0,0.02]
[1751274786279,30.94054257,2475.1,2475.0,0.02]
[1751274787194,24.67616448,2475.1,2475.0,0.02]
[1751274790323,24.68616448,2475.1,2475.0,0.02]
[1751274790820,24.98772501,2475.1,2475.0,0.02]
[1751274791394,31.2521031,2475.1,2475.0,0.02]
[1751274792120,62.2177719,2475.1,2475.0,0.02]
[1751274792478,32.2177719,2475.1,2475.0,0.02]
[1751274793106,23.9757719,2475.1,2475.0,0.02]
[1751274793281,32.2177719,2475.1,2475.0,0.02]
[1751274804812,33.42476223,2475.1,2475.0,0.02]
[1751274805144,63.42476223,2475.1,2475.0,0.02]
[1751274805442,32.2177719,2475.1,2475.0,0.02]
[1751274808117,33.42476223,2475.1,2475.0,0.02]
[1751274808544,25.18276223,2475.1,2475.0,0.02]
[1751274808746,33.42476223,2475.1,2475.0,0.02]
[1751274808944,32.2177719,2475.1,2475.0,0.02]
[1751274809147,33.42476223,2475.1,2475.0,0.02]
[1751274810431,32.2177719,2475.1,2475.0,0.02]
[1751274812562,33.42476223,2475.1,2475.0,0.02]
[1751274815259,32.2177719,2475.1,2475.0,0.02]
[1751274816859,42.3197719,2475.1,2475.0,0.02]
[1751274820260,43.92222941,2475.1,2475.0,0.02]
[1751274826974,4.04171045,2474.2,2474.1,0.825]
[1751274827169,12.28171045,2474.2,2474.1,0.825]
[1751274828248,12.58370896,2474.2,2474.1,0.825]
[1751274829146,12.28171045,2474.2,2474.1,0.825]
[1751274830696,12.58356944,2474.2,2474.1,0.825]
[1751274831347,13.37213212,2474.2,2474.1,0.825]
[1751274836250,13.07027313,2474.2,2474.1,0.825]
[1751274836984,13.37200035,2474.2,2474.1,0.825]
[1751274837185,13.07027313,2474.2,2474.1,0.825]
[1751274837573,5.72771045,2474.2,2474.1,0.825]
[1751274837758,12.28071045,2474.2,2474.1,0.825]
[1751274839358,4.04171045,2474.2,2474.1,0.825]
[1751274839559,12.28071045,2474.2,2474.1,0.825]
[1751274840407,4.04171045,2474.2,2474.1,0.825]
[1751274840585,12.28071045,2474.2,2474.1,0.825]
[1751274840882,1.8876,2474.3,2474.2,0.7581]
[1751274841087,8.4406,2474.3,2474.2,0.7581]
[1751274843886,0.2016,2474.3,2474.2,5.34981045]
[1751274844064,1.8876,2474.5,2474.4,1.341]
[1751274844283,0.2016,2474.5,2474.4,5.38238376]
[1751274844484,1.686,2474.6,2474.5,1.3577]
[1751274848376,5.72705714,2474.6,2474.5,0.8077]
[1751274848911,5.72705714,2474.6,2474.1,0.7716]
[1751274848912,4.04147114,2474.4,2474.2,0.8281]
[1751274849081,10.79507114,2474.4,2474.2,0.8281]
[1751274849281,11.49507114,2474.4,2474.2,0.8281]
[1751274849899,7.4536,2474.4,2474.2,0.8281]
[1751274850097,11.49500918,2474.4,2474.2,0.8281]
[1751274850889,4.0415471,2474.3,2474.2,1.3781]
[1751274851610,10.79506048,2474.4,2474.2,1.3781]
[1751274852980,6.7536,2474.4,2474.2,1.3781]
[1751274853714,0.2016,2474.4,2474.2,1.3781]
[1751274854010,6.7526,2474.4,2474.2,1.3781]
[1751274854383,10.79400947,2474.4,2474.2,1.3781]
[1751274855617,11.49400947,2474.4,2474.2,1.3781]
[1751274856011,4.0415471,2474.3,2474.2,1.3781]
[1751274857815,4.0415471,2474.3,2474.2,0.8281]
[1751274859332,11.49407098,2474.4,2474.2,0.8281]
[1751274859612,4.0415471,2474.3,2474.2,0.8281]
[1751274863819,4.0415471,2474.3,2474.1,0.02]
[1751274863820,4.04171045,2474.2,2474.1,0.57]
[1751274866025,4.04167489,2474.3,2474.1,0.57]
[1751274867223,11.49408769,2474.4,2474.1,0.57]
[1751274867420,11.49308769,2474.4,2474.1,0.57]
[1751274870226,11.49308769,2474.4,2474.2,0.785]
[1751274873730,7.4516,2474.4,2474.2,0.785]
[1751274879250,0.9016,2474.4,2474.2,4.82668733]
[1751274879552,7.4506,2474.4,2474.2,4.82668733]
[1751274880228,7.4506,2474.4,2474.3,4.0415471]
[1751274880624,7.4506,2474.4,2474.2,4.82662675]
[1751274880938,7.4506,2474.4,2474.3,4.5915471]
[1751274880939,0.7,2474.4,2474.3,4.5915471]
[1751274881105,6.548,2474.5,2474.4,4.59138376]
[1751274882056,0.2016,2474.6,2474.4,4.59138376]
[1751274883349,0.2016,2474.6,2474.5,4.86852044]
[1751274883567,1.98503879,2474.8,2474.6,0.55]
[1751274883761,8.4326,2474.8,2474.6,0.55]
[1751274885501,1.8846,2474.8,2474.6,0.55]
[1751274886342,1.8846,2474.8,2474.7,4.59089384]
[1751274886533,1.8846,2474.8,2474.7,5.41389384]
[1751274886534,0.2016,2474.8,2474.7,5.41389384]
[1751274886731,0.2016,2474.8,2474.7,1.373]
[1751274889671,0.2016,2474.8,2474.6,0.55]
[1751274890748,0.2016,2474.8,2474.5,0.55]
[1751274891441,4.24233206,2474.8,2474.5,0.55]
[1751274891851,0.2016,2474.8,2474.5,4.59121834]
[1751274893877,0.2016,2474.8,2474.5,0.55]
[1751274894084,4.24233799,2474.8,2474.5,0.55]
[1751274894962,0.2016,2474.8,2474.5,4.59121407]
[1751274895681,0.2016,2474.8,2474.5,0.55]
[1751274895887,4.24233408,2474.8,2474.5,0.55]
[1751274896673,4.24242969,2474.8,2474.5,0.55]
[1751274897887,4.04090758,2474.7,2474.5,0.55]
[1751274898111,4.2424218,2474.8,2474.5,0.55]
[1751274900391,0.2016,2474.8,2474.5,0.55]
[1751274900893,4.24234097,2474.8,2474.5,0.55]
[1751274901494,0.2016,2474.8,2474.5,4.59118181]
[1751274901680,0.2016,2474.8,2474.7,0.55]
[1751274903299,0.2016,2474.8,2474.7,4.59089384]
[1751274903462,1.683,2474.9,2474.8,4.59073056]
[1751274903659,1.683,2474.9,2474.8,0.55]
[1751274905392,1.683,2474.9,2474.6,0.2016]
[1751274905692,1.683,2474.9,2474.7,0.55]
[1751274905693,1.8846,2474.9,2474.7,0.55]
[1751274906002,1.8846,2474.9,2474.6,0.55]
[1751274906792,1.8846,2474.9,2474.6,4.59105671]
[1751274906992,5.92517658,2474.9,2474.6,0.55]
[1751274907373,1.8846,2474.9,2474.6,4.59104535]
[1751274908267,1.8846,2474.9,2474.8,0.55]
[1751274908675,0.2016,2474.9,2474.8,0.55]
[1751274909408,0.2016,2474.9,2474.7,0.55]
[1751274911087,0.2016,2474.9,2474.7,4.59088821]
[1751274911282,0.2016,2474.9,2474.7,0.55]
[1751274912003,0.2016,2474.9,2474.7,4.59086622]
[1751274913007,0.2016,2474.9,2474.7,0.55]
[1751274914694,1.0134,2474.9,2474.6,0.55]
[1751274914996,0.2016,2474.9,2474.8,0.55]
[1751274915196,1.693,2475.0,2474.8,4.59065131]
[1751274915782,0.01,2475.0,2474.9,4.59056729]
[1751274917113,0.01,2475.0,2474.9,0.55]
[1751274920304,0.16806513,2475.1,2474.9,0.55]
[1751274922116,0.16806513,2475.1,2474.9,4.59055052]
[1751274923629,0.16806513,2475.1,2475.0,0.55]
[1751274924194,0.16806513,2475.1,2475.0,4.59040404]
[1751274924500,0.01,2475.2,2475.1,4.59024079]
[1751274926000,0.01,2475.2,2475.1,0.55]
[1751274927830,0.01,2475.2,2475.1,4.59024079]
[1751274928431,0.2016,2475.4,2475.2,4.58999444]
[1751274929136,0.2016,2475.4,2475.1,4.59015578]
[1751274932238,0.2016,2475.4,2475.2,4.04006723]
[1751274933107,1.5926,2475.7,2475.3,4.58991435]
[1751274933308,0.2016,2475.6,2475.5,4.58958796]
[1751274933713,0.01,2475.8,2475.7,0.55]
[1751274934534,0.01,2475.8,2475.7,4.58926162]
[1751274936446,0.01,2475.8,2475.7,4.79086162]
[1751274938529,0.01,2475.8,2475.7,15.61946162]
[1751274941842,0.01,2475.8,2475.7,0.2016]
[1751274942052,0.01,2475.8,2475.3,4.03987415]
[1751274942252,4.82550857,2475.7,2475.3,6.7396]
[1751274942413,0.7861,2475.7,2475.4,0.55]
[1751274943223,0.7861,2475.7,2475.4,4.58972464]
[1751274943814,0.2116,2475.8,2475.4,4.58972464]
[1751274944216,0.2116,2475.8,2475.6,0.55]
[1751274944638,0.2116,2475.8,2475.5,0.55]
[1751274945353,0.2116,2475.8,2475.5,4.58958254]
[1751274946016,0.2116,2475.8,2475.5,0.55]
[1751274946250,4.25073121,2475.8,2475.5,0.55]
[1751274946458,0.2116,2475.8,2475.5,0.55]
[1751274947441,4.25070183,2475.8,2475.5,0.55]
[1751274948139,4.03928657,2475.7,2475.3,10.2016]
[1751274948342,4.25077719,2475.8,2475.4,0.55]
[1751274950650,0.2116,2475.8,2475.4,0.55]
[1751274950853,0.2116,2475.8,2475.6,0.55]
[1751274951250,4.25078262,2475.8,2475.4,0.55]
[1751274951552,4.03931684,2475.7,2475.4,0.55]
[1751274951719,4.80629705,2475.6,2475.4,0.55]
[1751274953076,4.80630029,2475.6,2475.4,0.55]
[1751274953359,4.03958796,2475.5,2475.4,0.55]
[1751274954557,4.80630029,2475.6,2475.3,0.55]
[1751274954558,4.03975115,2475.4,2475.3,0.55]
[1751274954766,0.2016,2475.5,2475.3,0.55]
[1751274957963,4.24119868,2475.5,2475.3,0.55]
[1751274958488,0.2016,2475.5,2475.3,0.55]
[1751274958648,0.2016,2475.5,2475.3,4.58987876]
[1751274960664,0.2016,2475.5,2475.3,0.55]
[1751274961162,0.2016,2475.5,2475.3,4.58991366]
[1751274962065,0.2016,2475.5,2475.3,0.55]
[1751274962265,0.2016,2475.5,2475.3,4.58981739]
[1751274962666,0.2016,2475.5,2475.4,4.58975115]
[1751274963261,0.787,2475.8,2475.5,4.03954017]
[1751274963456,0.2016,2475.7,2475.6,0.55]
[1751274965057,4.24086162,2475.7,2475.6,0.55]
[1751274965388,0.2016,2475.7,2475.6,0.55]
[1751274968193,4.24086162,2475.7,2475.6,0.55]
[1751274968661,4.03943611,2475.6,2475.1,10.752]
[1751274968861,0.7892,2475.5,2475.2,4.59005854]
[1751274969993,0.7892,2475.5,2475.2,0.55]
[1751274970607,4.82879251,2475.5,2475.2,0.55]
[1751274970895,0.7892,2475.5,2475.2,0.55]
[1751274971091,4.82883114,2475.5,2475.2,0.55]
[1751274971387,4.82881424,2475.5,2475.2,0.55]
[1751274971782,0.7892,2475.5,2475.2,0.55]
[1751274971986,0.7892,2475.5,2475.2,4.59005686]
[1751274972472,0.2016,2475.6,2475.4,0.55]
[1751274972792,0.9837,2475.7,2475.5,0.55]
[1751274974294,0.2016,2475.7,2475.5,4.58957339]
[1751274974500,0.2016,2475.7,2475.4,4.58964814]
[1751274975181,0.2016,2475.7,2475.5,4.0395829]
[1751274975621,0.2016,2475.7,2475.6,4.03942478]
[1751274975793,0.01,2475.8,2475.7,0.55]
[1751274975994,0.01,2475.8,2475.6,0.55]
[1751274976708,4.04912363,2475.8,2475.6,0.55]
[1751274978391,0.01,2475.8,2475.6,0.55]
[1751274981010,0.01,2475.8,2475.6,4.58942314]
[1751274981709,0.01,2475.8,2475.6,0.55]
[1751274983119,0.01,2475.8,2475.7,4.58926162]
[1751274984498,0.01,2475.8,2475.7,4.79086162]
[1751274985004,0.01,2475.8,2475.7,5.55346162]
[1751274985812,0.01,2475.8,2475.7,15.55346162]
[1751274986112,0.01,2475.8,2475.7,21.82243998]
[1751274986314,0.01,2475.8,2475.7,15.55346162]
[1751274987584,0.01,2475.8,2475.7,21.82243998]
[1751274990311,0.01,2475.8,2475.7,46.62287498]
[1751274990482,0.01,2475.8,2475.7,44.36898598]
[1751274990683,0.01,2475.8,2475.7,28.28022098]
[1751274991612,0.01,2476.0,2475.9,41.17561233]
[1751274991810,0.01,2476.0,2475.9,51.44399269]
[1751274991985,0.01,2476.0,2475.9,51.34582269]
[1751274992384,0.01,2476.0,2475.9,51.65308356]
[1751274992685,0.01,2476.0,2475.9,55.43656256]
[1751274992996,0.01,2476.0,2475.9,38.48756956]
[1751274993205,0.01,2476.0,2475.9,32.76957956]
[1751274993578,0.01,2476.0,2475.9,24.55857956]
[1751274993784,0.01,2476.0,2475.9,30.36307456]
[1751274994215,0.01,2476.0,2475.9,30.56447456]
[1751274994422,0.01,2476.0,2475.9,30.36207456]
[1751274995519,0.01,2476.0,2475.9,22.15207456]
[1751274995925,0.01,2476.0,2475.9,28.68507456]
[1751274996319,0.01,2476.0,2475.9,22.15207456]
[1751274996532,0.01,2476.0,2475.9,28.68507456]
[1751275003403,0.01,2476.0,2475.9,15.8830962]
[1751275003701,0.01,2476.0,2475.9,21.32253533]
[1751275005029,0.01,2476.0,2475.9,14.79053533]
[1751275005200,0.01,2476.0,2475.9,21.32253533]
[1751275005531,0.7846,2476.0,2475.9,10.7516]
[1751275005736,0.7846,2476.0,2475.9,17.2836]
[1751275006098,0.7846,2476.0,2475.9,0.55]
[1751275007835,4.82337221,2476.0,2475.7,10.2016]
[1751275008002,4.03893533,2475.9,2475.8,0.55]
[1751275008513,4.03893533,2475.9,2475.5,4.03955655]
[1751275008514,4.8108824,2475.8,2475.5,6.532]
[1751275008830,0.9733,2475.8,2475.5,0.55]
[1751275009007,5.01243369,2475.8,2475.5,0.55]
[1751275009615,0.9733,2475.8,2475.5,0.55]
[1751275010209,5.01247918,2475.8,2475.5,0.55]
[1751275010738,0.7917,2475.4,2474.9,2.24666727]
[1751275011045,0.7917,2475.2,2474.2,6.532]
[1751275011203,0.7917,2474.9,2474.5,4.24272591]
[1751275011397,0.9933,2474.9,2474.6,0.55]
[1751275011636,5.03388994,2474.9,2474.6,0.55]
[1751275012003,5.03388994,2474.9,2474.5,10.2016]
[1751275012248,0.9933,2474.9,2474.5,10.2016]
[1751275012534,0.9933,2474.9,2474.6,0.55]
[1751275013418,5.03392364,2474.9,2474.6,0.55]
[1751275013757,4.04081309,2474.8,2474.6,0.55]
[1751275013948,4.04084537,2474.8,2474.5,10.0]
[1751275014434,0.2016,2474.8,2474.5,10.0]
[1751275014607,4.2423412,2474.8,2474.5,10.0]
[1751275015009,0.2016,2474.8,2474.5,10.0]
[1751275015620,4.24233192,2474.8,2474.5,10.0]
[1751275015822,0.2016,2474.8,2474.5,10.0]
[1751275016029,4.2423319,2474.8,2474.5,10.0]
[1751275016242,0.2016,2474.8,2474.5,10.0]
[1751275017043,0.7709,2474.7,2474.1,0.02]
[1751275017204,4.04141471,2474.4,2474.1,0.02]
[1751275017619,0.8047,2474.2,2474.1,0.02]
[1751275018242,4.84641045,2474.2,2474.1,0.02]
[1751275024641,0.8047,2474.2,2474.1,0.02]
[1751275024810,2.4817,2474.2,2474.1,0.02]
[1751275025417,6.52341045,2474.2,2474.1,0.02]
[1751275025617,2.4817,2474.2,2474.1,0.02]
[1751275026946,6.52341045,2474.2,2474.1,0.02]
[1751275027126,8.23349735,2474.2,2474.1,0.02]
[1751275027945,4.1917869,2474.2,2474.1,0.02]
[1751275028130,8.23349735,2474.2,2474.1,0.02]
[1751275029822,9.0187,2474.2,2474.1,0.02]
[1751275032039,13.06041045,2474.2,2474.1,0.02]
[1751275033362,9.0187,2474.2,2474.1,0.02]
[1751275038766,13.06041045,2474.2,2474.1,0.02]
[1751275039336,9.0187,2474.2,2474.1,0.02]
[1751275044270,13.06041045,2474.2,2474.1,0.02]
[1751275045144,14.77060666,2474.2,2474.1,0.02]
[1751275046378,21.33375229,2474.2,2474.1,0.02]
[1751275046745,31.33375229,2474.2,2474.1,0.02]
[1751275050310,32.30263806,2474.2,2474.1,0.02]
[1751275050596,72.40563806,2474.2,2474.1,0.02]
[1751275050982,45.01267381,2474.1,2474.0,0.02]
[1751275051164,4.04334465,2473.2,2473.1,0.02]
[1751275051351,13.02754465,2473.2,2473.1,0.02]
[1751275052166,23.02754465,2473.2,2473.1,0.02]
[1751275052972,14.81254465,2473.2,2473.1,0.02]
[1751275053164,23.02754465,2473.2,2473.1,0.02]
[1751275053372,25.7346209,2473.2,2473.1,0.02]
[1751275053571,3.47627625,2473.2,2473.1,0.02]
[1751275053903,13.02754465,2473.2,2473.1,0.02]
[1751275058102,8.215,2473.2,2473.1,0.02]
[1751275058859,8.216,2473.2,2473.1,0.02]
[1751275060572,12.25934465,2473.2,2473.1,0.02]
[1751275061188,5.72034465,2473.2,2473.1,0.02]
[1751275061498,12.26034465,2473.2,2473.1,0.02]
[1751275061660,8.217,2473.2,2473.1,0.02]
[1751275061862,12.26034465,2473.2,2473.1,0.02]
[1751275065780,8.217,2473.2,2473.1,0.02]
[1751275067204,12.26034465,2473.2,2473.1,0.02]
[1751275067411,8.217,2473.2,2473.1,0.02]
[1751275067769,1.677,2473.2,2473.1,0.02]
[1751275068111,8.217,2473.2,2473.1,0.02]
[1751275068477,12.26034465,2473.2,2473.1,0.02]
[1751275069281,8.217,2473.2,2473.1,0.02]
[1751275070505,1.677,2473.2,2473.1,0.02]
[1751275070813,8.4186,2473.2,2473.1,0.7818]
[1751275074581,8.4186,2473.2,2473.1,0.02]
[1751275076013,1.8786,2473.2,2473.1,0.02]
[1751275076183,8.4186,2473.2,2473.1,0.02]
[1751275077109,8.4186,2473.2,2473.1,4.06350814]
[1751275077270,1.8786,2473.2,2473.1,4.06350814]
[1751275078570,1.8786,2473.2,2473.1,0.02]
[1751275079509,1.8786,2473.2,2473.1,4.06350814]
[1751275080321,0.2016,2473.2,2473.1,4.06350814]
[1751275080501,4.04292441,2473.5,2473.1,4.06350814]
[1751275080801,0.2016,2473.4,2473.1,0.02]
[1751275081505,0.2016,2473.4,2473.1,4.06348718]
[1751275082405,4.24464595,2473.4,2473.1,0.02]
[1751275082590,4.46770905,2473.3,2473.1,0.02]
[1751275082794,0.2016,2473.2,2473.1,0.02]
[1751275085581,4.24494465,2473.2,2473.1,0.02]
[1751275087291,5.01344465,2473.2,2473.1,0.02]
[1751275087912,15.01344465,2473.2,2473.1,0.02]
[1751275091516,15.01344465,2473.2,2472.4,0.0263557]
[1751275091517,4.04441277,2472.6,2472.1,14.59953018]
[1751275091716,0.2016,2472.4,2472.1,14.59953018]
[1751275092014,0.2016,2472.4,2472.2,4.04494199]
[1751275092518,0.2016,2472.4,2472.2,4.04491977]
[1751275096634,0.2016,2472.4,2472.1,14.59950021]
[1751275096779,0.2016,2472.4,2472.2,4.04496771]
[1751275097785,0.2016,2472.4,2472.1,14.59950249]
[1751275098814,0.2016,2472.4,2472.1,4.59952365]
[1751275099016,0.2016,2472.4,2472.2,4.04497647]
[1751275099318,0.2016,2472.4,2472.1,4.59951135]
[1751275100215,4.8569768,2472.3,2471.8,4.04556118]
[1751275100429,0.2016,2472.1,2471.9,0.55]
[1751275100733,0.2016,2472.1,2471.9,4.59538821]
[1751275100921,4.04440206,2472.6,2472.1,4.59508899]
[1751275101138,0.7637,2473.1,2472.6,0.55]
[1751275101300,0.2016,2472.9,2472.6,4.59422971]
[1751275101500,0.2016,2472.9,2472.8,4.0439987]
[1751275101684,0.8224,2473.4,2472.9,0.55]
[1751275101884,0.2016,2473.2,2473.0,4.04359472]
[1751275102308,0.2016,2473.2,2473.1,4.04350814]
[1751275102505,0.2016,2473.2,2473.1,5.31400814]
[1751275102709,0.2016,2473.4,2473.2,4.04325065]
[1751275103245,0.2016,2473.4,2473.1,4.76394437]
[1751275103591,0.2016,2473.4,2473.1,0.7205]
[1751275103787,0.2016,2473.4,2473.1,4.76398436]
[1751275105124,0.2016,2473.4,2473.3,4.04318117]
[1751275107121,0.2016,2473.4,2473.3,4.59318117]
[1751275107320,0.2016,2473.7,2473.5,0.7205]
[1751275108234,0.2016,2473.7,2473.5,4.76333818]
[1751275108645,0.2016,2473.7,2473.6,4.04269081]
[1751275108842,0.2016,2473.7,2473.5,4.76327466]
[1751275109841,0.2016,2473.7,2473.5,0.7205]
[1751275110050,0.2016,2473.7,2473.4,0.55]
[1751275110715,0.2016,2473.7,2473.4,4.59301202]
[1751275111826,0.2016,2473.7,2473.4,4.59294382]
[1751275113748,0.2016,2473.7,2473.4,4.59291765]
[1751275114051,0.2016,2473.7,2473.5,4.04285331]
[1751275114453,0.2016,2473.7,2473.4,4.59298474]
[1751275115158,0.2016,2473.7,2473.4,0.55]
[1751275115319,0.2016,2473.7,2473.3,0.7205]
[1751275115524,4.04279074,2473.6,2473.2,4.59334345]
[1751275115719,0.2016,2473.5,2473.2,0.55]
[1751275115923,4.24457838,2473.5,2473.2,0.55]
[1751275116951,4.24457838,2473.5,2473.1,4.59348626]
[1751275118122,4.04290296,2473.5,2473.0,4.59351531]
[1751275118320,0.2016,2473.3,2473.1,4.04342516]
[1751275118522,4.2448832,2473.3,2473.0,0.55]
[1751275118750,4.0434647,2473.2,2473.0,0.55]
[1751275118952,4.0434647,2473.2,2472.9,0.55]
[1751275119331,0.2016,2473.1,2472.9,0.55]
[1751275122339,0.2016,2473.1,2472.8,4.59399209]
[1751275123741,0.2016,2473.1,2472.8,0.55]
[1751275123957,0.2016,2473.1,2472.8,4.59399848]
[1751275124648,4.2451155,2473.1,2472.8,0.55]
[1751275124963,4.2451155,2473.1,2472.7,0.2016]
[1751275124964,0.70247155,2473.1,2472.7,0.2016]
[1751275125169,0.70247155,2473.1,2472.5,4.76492674]
[1751275125170,0.2016,2472.8,2472.5,4.76492674]
[1751275125374,0.2016,2472.8,2472.7,4.04416225]
[1751275125573,0.2016,2472.8,2472.6,4.59428872]
[1751275125859,0.2016,2472.8,2472.6,0.55]
[1751275126234,0.2016,2472.8,2472.4,4.59457671]
[1751275126235,5.00460477,2472.8,2472.4,4.59457671]
[1751275126633,4.04419589,2472.7,2472.3,0.9221]
[1751275126944,4.04430832,2472.7,2472.4,0.55]
[1751275127128,4.04450109,2472.5,2472.1,4.04505222]
[1751275127330,4.24610109,2472.5,2472.2,0.55]
[1751275127668,4.24610109,2472.5,2472.1,4.24665222]
[1751275127832,4.24610109,2472.5,2472.2,0.55]
[1751275128229,4.04476905,2472.4,2472.1,0.2016]
[1751275128447,0.2016,2472.2,2471.8,0.9221]
[1751275128863,0.2016,2472.2,2471.9,0.55]
[1751275129560,0.2016,2472.2,2471.9,4.59546151]
[1751275132370,4.24662686,2472.2,2471.9,0.55]
[1751275132556,4.04514403,2472.1,2471.9,0.55]
[1751275132937,0.9634,2472.2,2471.9,0.55]
[1751275133286,0.9634,2472.2,2471.9,4.59545497]
[1751275133440,5.00838248,2472.2,2471.9,0.55]
[1751275133636,0.9634,2472.2,2471.9,0.55]
[1751275133942,0.9634,2472.2,2471.9,4.59546698]
[1751275134679,0.9634,2472.2,2471.9,0.55]
[1751275135259,5.00838084,2472.2,2471.9,0.55]
[1751275135455,0.9634,2472.2,2471.9,0.55]
[1751275137166,5.00838261,2472.2,2471.9,0.55]
[1751275137374,0.9634,2472.2,2471.9,0.55]
[1751275138152,5.00840656,2472.2,2471.9,0.55]
[1751275138541,4.95058477,2472.1,2471.9,0.55]
[1751275138741,0.90533234,2472.1,2471.9,0.55]
[1751275139141,4.04539257,2472.0,2471.7,0.55]
[1751275139347,0.2016,2471.9,2471.5,4.24765401]
[1751275139978,0.2016,2471.9,2471.7,4.04577602]
[1751275140172,0.2016,2471.9,2471.8,4.59563476]
[1751275140973,0.2016,2472.1,2471.9,4.04546824]
[1751275143774,0.2016,2472.1,2472.0,4.04530744]
[1751275144143,0.7538,2472.4,2472.1,4.04514206]